fUSD/lending_fUSD_20240630
["ID","MTS","AMOUNT","RATE_DAILY","PERIOD"]
[330692242,1719711100689,-500.0,0.00014904,3]
[330692243,1719711100699,-608.49,0.00014904,3]
[330692244,1719711100708,-660.44,0.00014904,3]
[330692245,1719711100718,-500.0,0.00014904,3]
[330692246,1719711100727,-2629.63,0.00014904,3]
[330692247,1719711100736,-500.0,0.00014904,3]
[330692248,1719711100745,-150.0,0.00014904,2]
[330692249,1719711100755,-500.0,0.00014904,3]
[330692250,1719711100764,-1298.08,0.00014904,3]
[330692251,1719711100773,-721.44,0.00014904,3]
[330692252,1719711100783,-150.0,0.00014904,2]
[330692253,1719711100792,-551.41,0.00014904,3]
[330692254,1719711100801,-945.69,0.00014904,3]
[330692255,1719711100811,-230.4945024,0.00014904,2]
[330692256,1719711100820,-500.0,0.00014904,3]
[330692257,1719711100829,-525.15,0.00014904,3]
[330692258,1719711100838,-1708.5,0.00014904,3]
[330692259,1719711100847,-781.98,0.00014904,3]
[330692260,1719711100858,-1393.7,0.00014904,3]
[330692261,1719711100868,-686.06,0.00014904,3]
[330692262,1719711100878,-500.0,0.00014904,3]
[330692263,1719711100888,-439.93402496,0.00014904,3]
[330692264,1719711100897,-183.80827619,0.00014904,3]
[330692265,1719711100908,-1608.03,0.00014904,3]
[330692266,1719711100917,-574.91,0.00014904,3]
[330692267,1719711100926,-500.0,0.00014904,3]
[330692268,1719711100936,-500.0,0.00014904,3]
[330692269,1719711100946,-679.33,0.00014904,3]
[330692270,1719711100955,-169.41460457,0.00014904,3]
[330692271,1719711100965,-500.0,0.00014904,3]
[330692272,1719711100974,-500.0,0.00014904,3]
[330692273,1719711100984,-500.0,0.00014904,3]
[330692274,1719711100994,-500.0,0.00014904,3]
[330692275,1719711101004,-4351.69,0.00014904,3]
[330692276,1719711101013,-899.57,0.00014904,3]
[330692277,1719711101026,-500.0,0.00014904,3]
[330692278,1719711101035,-500.0,0.00014904,3]
[330692279,1719711101045,-590.76,0.00014904,3]
[330692280,1719711101055,-581.58,0.00014904,3]
[330692281,1719711101065,-719.02,0.00014904,3]
[330692282,1719711101074,-680.73,0.00014904,3]
[330692283,1719711101083,-1466.68,0.00014904,3]
[330692284,1719711101092,-150.0,0.00014904,2]
[330692285,1719711101101,-500.0,0.00014904,3]
[330692286,1719711101111,-150.0,0.00014904,2]
[330692287,1719711101121,-1052.34,0.00014904,3]
[330692288,1719711101130,-8291.65,0.00014904,3]
[330692289,1719711101139,-500.0,0.00014904,3]
[330692290,1719711101148,-500.0,0.00014904,3]
[330692291,1719711101158,-150.0,0.00014904,2]
[330692292,1719711101167,-500.0,0.00014904,3]
[330692293,1719711101177,-150.0,0.00014904,2]
[330692294,1719711101187,-500.0,0.00014904,3]
[330692295,1719711101196,-857.65,0.00014904,3]
[330692296,1719711101208,-500.0,0.00014904,3]
[330692297,1719711101218,-150.0,0.00014904,2]
[330692298,1719711101227,-733.86,0.00014904,3]
[330692299,1719711101236,-2739.13,0.00014904,3]
[330692300,1719711101245,-500.0,0.00014904,3]
[330692301,1719711101254,-500.0,0.00014904,3]
[330692302,1719711101263,-1644.16,0.00014904,3]
[330692303,1719711101271,-709.63,0.00014904,3]
[330692304,1719711101280,-1160.63,0.00014904,3]
[330692305,1719711101289,-500.0,0.00014904,3]
[330692306,1719711101299,-688.73,0.00014904,3]
[330692307,1719711101307,-297.9812604,0.00014904,2]
[330692308,1719711101316,-500.0,0.00014904,3]
[330692309,1719711101326,-500.0,0.00014904,3]
[330692310,1719711101336,-150.0,0.00014904,2]
[330692311,1719711101347,-150.0,0.00014904,2]
[330692312,1719711101356,-515.33,0.00014904,3]
[330692313,1719711101366,-1136.46,0.00014904,3]
[330692314,1719711101376,-952.21,0.00014904,3]
[330692315,1719711101386,-651.27,0.00014904,3]
[330692316,1719711101395,-1024.41,0.00014904,3]
[330692317,1719711101404,-1657.35,0.00014904,3]
[330692318,1719711101413,-500.0,0.00014904,3]
[330692319,1719711101423,-150.0,0.00014904,2]
[330692320,1719711101433,-666.12,0.00014904,3]
[330692321,1719711101443,-569.76,0.00014904,3]
[330692322,1719711101453,-1272.44,0.00014904,3]
[330692323,1719711101462,-500.0,0.00014904,3]
[330692324,1719711101471,-990.57,0.00014904,3]
[330692325,1719711101481,-500.0,0.00014904,3]
[330692326,1719711101490,-973.19,0.00014904,3]
[330692327,1719711101499,-500.0,0.00014904,3]
[330692328,1719711101509,-2333.23,0.00014904,3]
[330692329,1719711101518,-737.96,0.00014904,3]
[330692330,1719711101527,-681.0,0.00014904,3]
[330692331,1719711101536,-500.0,0.00014904,3]
[330692332,1719711101546,-2346.07,0.00014904,3]
[330692333,1719711101555,-500.0,0.00014904,3]
[330692334,1719711101565,-500.0,0.00014904,3]
[330692335,1719711101574,-2093.74,0.00014904,3]
[330692336,1719711101585,-500.0,0.00014904,3]
[330692337,1719711101596,-517.54,0.00014904,3]
[330692338,1719711101609,-741.16,0.00014904,3]
[330692339,1719711101619,-500.0,0.00014904,3]
[330692340,1719711101628,-1584.98,0.00014904,3]
[330692341,1719711101638,-500.0,0.00014904,3]
[330692342,1719711101649,-17519.3,0.00014904,3]
[330692343,1719711101658,-2255.93,0.00014904,3]
[330692344,1719711101667,-500.0,0.00014904,3]
[330692345,1719711101676,-733.6,0.00014904,3]
[330692346,1719711101688,-730.7,0.00014904,3]
[330692347,1719711101698,-1366.43,0.00014904,3]
[330692348,1719711101707,-2373.06,0.00014904,3]
[330692349,1719711101717,-500.0,0.00014904,3]
[330692350,1719711101726,-500.0,0.00014904,3]
[330692351,1719711101735,-1233.97,0.00014904,3]
[330692352,1719711101745,-973.08,0.00014904,3]
[330692353,1719711101754,-500.0,0.00014904,3]
[330692354,1719711101763,-500.0,0.00014904,3]
[330692355,1719711101773,-565.49,0.00014904,3]
[330692356,1719711101782,-1453.68,0.00014904,3]
[330692357,1719711101792,-500.0,0.00014904,3]
[330692358,1719711101802,-500.0,0.00014904,3]
[330692359,1719711101811,-2749.71,0.00014904,3]
[330692360,1719711101820,-500.0,0.00014904,3]
[330692361,1719711101830,-500.0,0.00014904,3]
[330692362,1719711101839,-1470.04,0.00014904,3]
[330692363,1719711101849,-1000.06,0.00014904,3]
[330692364,1719711101858,-789.6,0.00014904,3]
[330692365,1719711101867,-587.36,0.00014904,3]
[330692366,1719711101877,-3074.88,0.00014904,3]
[330692367,1719711101887,-1717.46,0.00014904,3]
[330692368,1719711101896,-553.57,0.00014904,3]
[330692369,1719711101907,-538.78,0.00014904,3]
[330692370,1719711101916,-734.77,0.00014904,3]
[330692371,1719711101926,-872.59,0.00014904,3]
[330692372,1719711101937,-505.1,0.00014904,3]
[330692373,1719711101946,-4030.58,0.00014904,3]
[330692374,1719711101955,-1619.26,0.00014904,3]
[330692375,1719711101965,-1040.75,0.00014904,3]
[330692376,1719711101974,-500.0,0.00014904,3]
[330692377,1719711101984,-1019.73,0.00014904,3]
[330692378,1719711101994,-500.0,0.00014904,3]
[330692379,1719711102003,-917.98,0.00014904,3]
[330692380,1719711102013,-500.0,0.00014904,3]
[330692381,1719711102022,-544.73,0.00014904,3]
[330692382,1719711102031,-500.0,0.00014904,3]
[330692383,1719711102040,-2026.5,0.00014904,3]
[330692384,1719711102049,-806.6,0.00014904,3]
[330692385,1719711102059,-1434.62,0.00014904,3]
[330692386,1719711102068,-914.82,0.00014904,3]
[330692387,1719711102077,-2283.96,0.00014904,3]
[330692388,1719711102085,-500.0,0.00014904,3]
[330692389,1719711102095,-853.8,0.00014904,3]
[330692390,1719711102104,-990.19,0.00014904,3]
[330692391,1719711102113,-527.87,0.00014904,3]
[330692392,1719711102122,-555.08,0.00014904,3]
[330692393,1719711102132,-500.0,0.00014904,3]
[330692394,1719711102141,-2932.06,0.00014904,3]
[330692395,1719711102151,-1092.71,0.00014904,3]
[330692396,1719711102160,-500.0,0.00014904,3]
[330692397,1719711102170,-866.85,0.00014904,3]
[330692398,1719711102179,-1430.53,0.00014904,3]
[330692399,1719711102190,-500.0,0.00014904,3]
[330692400,1719711102198,-500.0,0.00014904,3]
[330692401,1719711102208,-668.37,0.00014904,3]
[330692402,1719711102217,-804.46,0.00014904,3]
[330692403,1719711102226,-726.78,0.00014904,3]
[330692404,1719711102235,-623.27,0.00014904,3]
[330692405,1719711102244,-962.38,0.00014904,3]
[330692406,1719711102254,-500.0,0.00014904,3]
[330692407,1719711102263,-1151.96,0.00014904,3]
[330692408,1719711102273,-1231.81,0.00014904,3]
[330692409,1719711102282,-572.24,0.00014904,3]
[330692410,1719711102292,-500.0,0.00014904,3]
[330692411,1719711102302,-500.0,0.00014904,3]
[330692412,1719711102311,-789.18,0.00014904,3]
[330692413,1719711102321,-500.0,0.00014904,3]
[330692414,1719711102330,-2872.85,0.00014904,3]
[330692415,1719711102340,-250.0,0.00014948,2]
[330692416,1719711102350,-2940.4684663,0.00014959,2]
[330692417,1719711102359,-9153.93675364,0.00014959,2]
[330692418,1719711102367,-250.0,0.00014986,2]
[330692419,1719711102377,-250.0,0.00014986,2]
[330692420,1719711102386,-45357.4937666,0.0001499,2]
[330692421,1719711102396,-29394.1479666,0.0001499,2]
[330692422,1719711102405,-13430.8021666,0.0001499,2]
[330692423,1719711102415,-2103.3780306,0.0001499,2]
[330692424,1719711102425,-1363.1045264,0.0001499,2]
[330692425,1719711102436,-622.8310223,0.0001499,2]
[330692426,1719711102445,-5000.0,0.00015,2]
[330692427,1719711102454,-1701.66765886,0.00015,2]
[330692428,1719711102464,-10322.43905043,0.00015,2]
[330692429,1719711102473,-600595.4301604,0.00015,2]
[330692430,1719711102967,-27742.72629826,0.00015,2]
[330692431,1719711102977,-490.0,0.00015,2]
[330692432,1719711102987,-181515.17301362,0.00015,2]
[330692433,1719711102999,-38167.44133924,0.00015,2]
[330692434,1719711103010,-9151.40863851,0.00015,2]
[330692435,1719711103021,-8397.36669229,0.00015,2]
[330692436,1719711103076,-3423.68358874,0.00015,2]
[330692437,1719711103231,-500.0,0.00013808,3]
[330692438,1719711103241,-500.0,0.00013917,3]
[330692439,1719711103251,-996.71,0.00014027,3]
[330692440,1719711103260,-16918.88999999,0.00015,2]
[330692441,1719711103272,-1526.32520667,0.00015,2]
[330692442,1719711103283,-91064.1946794,0.00015,2]
[330692443,1719711103295,-8114.95392248,0.00015,2]
[330692444,1719711103307,-14664.87161032,0.00015,2]
[330692445,1719711103319,-271.85267956,0.00015,2]
[330692446,1719711103330,-84351.29978252,0.00015,2]
[330692447,1719711103342,-2854.94915866,0.00015,2]
[330692448,1719711103355,-1483.51991344,0.00015,2]
[330692449,1719711103369,-321.94953815,0.00015,2]
[330692450,1719711103381,-606.85991606,0.00015,2]
[330692451,1719711103394,-8280.29415686,0.00015,2]
[330692452,1719711103548,-500.0,0.00014027,3]
[330692453,1719711103559,-1003.38,0.00014684,3]
[330692454,1719711103568,-14739.19683747,0.00015,2]
[330692455,1719711103581,-537.16417105,0.00015,2]
[330692456,1719711103592,-1385.1838,0.00015,2]
[330692457,1719711103607,-2759.5004898,0.00015,2]
[330692458,1719711103619,-1640.91763236,0.00015,2]
[330692459,1719711103631,-1128.66166438,0.00015,2]
[330692460,1719711103643,-1299.7799031,0.00015,2]
[330692461,1719711103660,-1085.38460535,0.00015,2]
[330692462,1719711103675,-968.85757747,0.00015,2]
[330692463,1719711103691,-1151.17241767,0.00015,2]
[330692464,1719711104842,-510.72993027,0.00013698,3]
[330692465,1719711104852,-202.36637053,0.00013698,3]
[330692466,1719711104864,-417.1585653,0.00013698,3]
[330692467,1719711104873,-500.0,0.00013698,3]
[330692468,1719711104883,-351.8379226,0.00013808,3]
[330692469,1719711104893,-2421.465,0.00013896,2]
[330692470,1719711104904,-162.96668314,0.00013927,2]
[330692471,1719711104914,-119.43126075,0.00014136,3]
[330692472,1719711104964,-502.08381507,0.00014136,3]
[330692473,1719711104977,-375.19492418,0.00014136,3]
[330692474,1719711104987,-500.0,0.00014136,3]
[330692475,1719711104997,-500.0,0.00014246,3]
[330692476,1719711105007,-996.71,0.00014246,3]
[330692477,1719711105017,-500.0,0.00014246,3]
[330692478,1719711105027,-500.0,0.00014356,3]
[330692479,1719711105037,-996.71,0.00014356,3]
[330692480,1719711105047,-500.0,0.00014356,3]
[330692481,1719711105056,-500.0,0.00014465,3]
[330692482,1719711105066,-500.0,0.00014465,3]
[330692483,1719711105075,-996.71,0.00014465,3]
[330692484,1719711105086,-500.0,0.00014575,3]
[330692485,1719711105095,-500.0,0.00014575,3]
[330692486,1719711105104,-996.71,0.00014575,3]
[330692487,1719711105114,-500.0,0.00014684,3]
[330692488,1719711105123,-500.0,0.00014684,3]
[330692489,1719711105132,-667.89496726,0.00014684,3]
[330692490,1719711105144,-328.81503274,0.00014684,3]
[330692491,1719711105154,-1003.38,0.00014794,3]
[330692492,1719711105163,-464.68297181,0.00014794,3]
[330692493,1719711105172,-500.0,0.00014794,3]
[330692494,1719711105181,-996.71,0.00014794,3]
[330692495,1719711105192,-513.27924993,0.00014904,3]
[330692496,1719711105204,-490.10075007,0.00014904,3]
[330692497,1719711105214,-500.0,0.00014904,3]
[330692498,1719711105223,-759.89924993,0.00015,2]
[330692509,1719711269455,168.8,0.00010251,2]
[330692514,1719711447676,488.81,0.00010742,2]
[330692515,1719711517579,3072.90189007,0.00011098,2]
[330692521,1719711608606,3112.983249,0.00011098,2]
[330692522,1719711636703,160.90800127,0.00011099,2]
[330692523,1719711654370,155.34335162,0.00011098,2]
[330692524,1719711685599,1902.6542642,0.00011098,2]
[330692525,1719711690677,2378.63956669,0.00011098,2]
[330692526,1719711701544,155.17317172,0.00011098,2]
[330692528,1719711771020,1136.19232104,0.00011098,2]
[330692529,1719711779110,178.63941288,0.00011097,2]
[330692530,1719711784439,1265.72331532,0.00011098,2]
[330692531,1719711805089,1284.36235108,0.00011098,2]
[330692532,1719711805119,1539.02592725,0.00011098,2]
[330692533,1719711815821,957.77062402,0.00011098,2]
[330692534,1719711835488,1072.19451902,0.00011098,2]
[330692535,1719711921225,661.6047841,0.00011098,2]
[330692537,1719711969736,755.60096089,0.00011098,2]
[330692538,1719711985181,464.36,0.00010435,2]
[330692540,1719712032059,155.15267088,0.00011098,2]
[330692541,1719712046511,483.97204969,0.00011098,2]
[330692542,1719712076838,721.05791821,0.00011098,2]
[330692543,1719712094460,178.63941287,0.00011099,2]
[330692544,1719712117222,255.13577098,0.00011098,2]
[330692545,1719712129253,159.32697088,0.00011098,2]
[330692546,1719712129962,155.0,0.00011098,2]
[330692547,1719712153832,155.20754972,0.00011098,2]
[330692548,1719712165418,270.12707613,0.00011098,2]
[330692549,1719712167870,155.28644684,0.00011098,2]
[330692550,1719712179409,267.03281468,0.00011098,2]
[330692551,1719712186814,155.30964137,0.00011098,2]
[330692552,1719712190804,379.57467966,0.00011098,2]
[330692553,1719712203232,203.51618968,0.00011098,2]
[330692554,1719712215762,158.56926775,0.00011098,2]
[330692555,1719712218206,270.09861498,0.00011098,2]
[330692556,1719712219444,218.35343849,0.00011098,2]
[330692557,1719712222442,365.10484834,0.00011098,2]
[330692558,1719712222984,227.04865744,0.00011098,2]
[330692559,1719712224999,235.86876767,0.00011098,2]
[330692593,1719712237723,-300.0,0.00011196,2]
[330692594,1719712237733,-164.04625942,0.00011197,2]
[330692595,1719712237746,-305.36177236,0.00011197,2]
[330692596,1719712237758,-155.0,0.00011199,2]
[330692597,1719712237767,-155.0,0.00011199,2]
[330692598,1719712237776,-250.0,0.00012085,2]
[330692599,1719712237787,-204.50554,0.00012099,2]
[330692600,1719712237797,-1751.6749,0.0001216,2]
[330692601,1719712237806,-168.25,0.00012166,2]
[330692602,1719712237816,-20298.06,0.0001222,2]
[330692603,1719712237826,-500.0,0.0001226,2]
[330692604,1719712237836,-500.0,0.0001226,2]
[330692605,1719712237847,-368.41430848,0.00012273,2]
[330692606,1719712237856,-150.0,0.00012274,2]
[330692607,1719712237866,-420.0,0.00012301,2]
[330692608,1719712237875,-1000.0,0.00012302,2]
[330692609,1719712237885,-722.36239335,0.00012302,2]
[330692610,1719712237894,-166.79,0.00012353,2]
[330692611,1719712237903,-287.92,0.00012495,2]
[330692612,1719712237912,-250.0,0.00012503,2]
[330692613,1719712237922,-464.36,0.00012699,2]
[330692614,1719712237931,-167.45,0.00012721,2]
[330692615,1719712237940,-1000.0,0.00012768,2]
[330692616,1719712237950,-5286.9,0.00012768,2]
[330692617,1719712237959,-184.66,0.00012945,2]
[330692618,1719712237968,-1003.44526479,0.00013127,2]
[330692619,1719712237978,-251.0,0.00013158,2]
[330692620,1719712237987,-4863.16160766,0.00013452,2]
[330692621,1719712237996,-11326.3573,0.00013507,2]
[330692622,1719712238006,-802.4449,0.00013507,2]
[330692623,1719712238015,-587.0,0.00013514,2]
[330692624,1719712238025,-173.08,0.00013534,2]
[330692625,1719712238035,-514.1342895,0.00013598,2]
[330692626,1719712238045,-171.65463201,0.00013598,2]
[330692627,1719712238054,-510.4504,0.00013598,2]
[330692628,1719712238064,-1862.58,0.00013598,2]
[330692629,1719712238073,-1576.1205,0.00013598,2]
[330692630,1719712238083,-1135.79381569,0.00013639,2]
[330692632,1719712238093,-500.0,0.00013698,3]
[330692634,1719712238102,-500.0,0.00013698,3]
[330692636,1719712238111,-3307.59,0.00013698,3]
[330692638,1719712238120,-654.89,0.00013698,3]
[330692640,1719712238129,-853.31,0.00013698,3]
[330692642,1719712238139,-2566.02,0.00013698,3]
[330692644,1719712238149,-500.0,0.00013698,3]
[330692646,1719712238159,-500.0,0.00013698,3]
[330692648,1719712238168,-703.2,0.00013698,3]
[330692650,1719712238177,-510.42232547,0.00013698,3]
[330692652,1719712238187,-500.0,0.00013698,3]
[330692654,1719712238196,-537.74,0.00013698,3]
[330692656,1719712238206,-500.0,0.00013698,3]
[330692658,1719712238215,-500.0,0.00013698,3]
[330692660,1719712238225,-895.02,0.00013698,3]
[330692662,1719712238234,-506.28362269,0.00013698,3]
[330692664,1719712238244,-525.4237174,0.00013698,3]
[330692666,1719712238253,-650.48,0.00013698,3]
[330692668,1719712238262,-292.73137895,0.00013698,3]
[330692670,1719712238271,-500.0,0.00013698,3]
[330692672,1719712238282,-500.0,0.00013698,3]
[330692673,1719712238292,-500.0,0.00013698,3]
[330692675,1719712238301,-500.0,0.00013698,3]
[330692677,1719712238311,-506.30047364,0.00013698,3]
[330692679,1719712238322,-500.0,0.00013698,3]
[330692682,1719712238332,-500.0,0.00013698,3]
[330692684,1719712238342,-508.33216048,0.00013698,3]
[330692686,1719712238352,-500.0,0.00013698,3]
[330692687,1719712238361,-500.0,0.00013698,3]
[330692688,1719712238371,-500.0,0.00013698,3]
[330692689,1719712238380,-500.0,0.00013698,3]
[330692690,1719712238390,-500.0,0.00013698,3]
[330692691,1719712238400,-626.21,0.00013698,3]
[330692692,1719712238410,-500.0,0.00013698,3]
[330692693,1719712238420,-500.0,0.00013698,3]
[330692694,1719712238429,-500.0,0.00013698,3]
[330692695,1719712238439,-500.0,0.00013698,3]
[330692696,1719712238449,-528.14,0.00013698,3]
[330692697,1719712238459,-500.0,0.00013698,3]
[330692698,1719712238469,-508.55012471,0.00013698,3]
[330692699,1719712238479,-504.60527452,0.00013698,3]
[330692700,1719712238488,-581.81,0.00013698,3]
[330692701,1719712238498,-506.57367219,0.00013698,3]
[330692702,1719712238507,-500.0,0.00013698,3]
[330692704,1719712238517,-500.0,0.00013698,3]
[330692706,1719712238527,-506.143098,0.00013698,3]
[330692708,1719712238546,-500.0,0.00013698,3]
[330692710,1719712238556,-611.24,0.00013698,3]
[330692712,1719712238566,-638.35,0.00013698,3]
[330692714,1719712238576,-507.69817141,0.00013698,3]
[330692716,1719712238585,-500.0,0.00013698,3]
[330692718,1719712238595,-506.81860417,0.00013698,3]
[330692720,1719712238604,-1173.2,0.00013698,3]
[330692722,1719712238614,-510.56360457,0.00013698,3]
[330692724,1719712238624,-1018.59,0.00013698,3]
[330692726,1719712238634,-500.0,0.00013698,3]
[330692728,1719712238644,-504.5586789,0.00013698,3]
[330692730,1719712238655,-670.59,0.00013698,3]
[330692732,1719712238668,-8802.34,0.00013698,3]
[330692734,1719712238677,-500.0,0.00013698,3]
[330692736,1719712238688,-392.70857195,0.00013698,3]
[330692738,1719712238697,-500.0,0.00013698,3]
[330692740,1719712238707,-500.0,0.00013698,3]
[330692742,1719712238716,-500.0,0.00013698,3]
[330692744,1719712238726,-508.07806796,0.00013698,3]
[330692746,1719712238735,-500.0,0.00013698,3]
[330692748,1719712238749,-1236.65,0.00013698,3]
[330692750,1719712238759,-504.91187254,0.00013698,3]
[330692752,1719712238768,-500.0,0.00013698,3]
[330692754,1719712238778,-500.0,0.00013698,3]
[330692756,1719712238789,-500.0,0.00013698,3]
[330692758,1719712238799,-506.67106187,0.00013698,3]
[330692760,1719712238810,-508.85646196,0.00013698,3]
[330692762,1719712238823,-505.75350043,0.00013698,3]
[330692764,1719712238833,-500.0,0.00013698,3]
[330692766,1719712238842,-500.0,0.00013698,3]
[330692768,1719712238851,-508.8689782,0.00013698,3]
[330692770,1719712238860,-500.0,0.00013698,3]
[330692772,1719712238869,-510.26959603,0.00013698,3]
[330692774,1719712238879,-500.0,0.00013698,3]
[330692776,1719712238895,-506.04378983,0.00013698,3]
[330692778,1719712238905,-509.12688298,0.00013698,3]
[330692780,1719712238915,-500.0,0.00013698,3]
[330692782,1719712238926,-504.45739639,0.00013698,3]
[330692784,1719712238935,-500.0,0.00013698,3]
[330692786,1719712238944,-500.0,0.00013698,3]
[330692788,1719712238954,-500.0,0.00013698,3]
[330692790,1719712238963,-509.17923928,0.00013698,3]
[330692792,1719712238973,-500.0,0.00013698,3]
[330692794,1719712238982,-500.0,0.00013698,3]
[330692796,1719712238991,-549.29829486,0.00013698,3]
[330692798,1719712239001,-500.0,0.00013698,3]
[330692800,1719712239011,-558.7,0.00013698,3]
[330692802,1719712239022,-507.83610424,0.00013698,3]
[330692804,1719712239033,-505.84391463,0.00013698,3]
[330692806,1719712239043,-508.90959194,0.00013698,3]
[330692808,1719712239054,-500.58252331,0.00013698,2]
[330692810,1719712239064,-500.0,0.00013698,3]
[330692812,1719712239074,-503.32593179,0.00013698,3]
[330692814,1719712239084,-500.0,0.00013698,3]
[330692816,1719712239095,-500.0,0.00013698,3]
[330692818,1719712239106,-501.63588829,0.00013698,3]
[330692820,1719712239118,-500.0,0.00013698,3]
[330692822,1719712239128,-500.0,0.00013698,3]
[330692824,1719712239143,-666.93,0.00013698,3]
[330692826,1719712239153,-508.79766829,0.00013698,3]
[330692829,1719712239164,-500.0,0.00013698,3]
[330692831,1719712239174,-507.21433059,0.00013698,3]
[330692833,1719712239184,-500.0,0.00013698,3]
[330692834,1719712239195,-912.41,0.00013698,3]
[330692836,1719712239204,-816.67,0.00013698,3]
[330692838,1719712239215,-508.19963254,0.00013698,3]
[330692841,1719712239224,-510.86586663,0.00013698,3]
[330692842,1719712239235,-509.08225958,0.00013698,3]
[330692845,1719712239245,-500.0,0.00013698,3]
[330692846,1719712239255,-500.0,0.00013698,3]
[330692849,1719712239266,-500.0,0.00013698,3]
[330692851,1719712239277,-508.40714595,0.00013698,3]
[330692853,1719712239287,-500.0,0.00013698,3]
[330692855,1719712239298,-500.0,0.00013698,3]
[330692857,1719712239308,-500.0,0.00013698,3]
[330692859,1719712239318,-500.0,0.00013698,3]
[330692861,1719712239328,-500.0,0.00013698,3]
[330692863,1719712239338,-500.0,0.00013698,3]
[330692865,1719712239348,-500.0,0.00013698,3]
[330692867,1719712239358,-500.0,0.00013698,3]
[330692869,1719712239368,-500.0,0.00013698,3]
[330692871,1719712239378,-500.0,0.00013698,3]
[330692873,1719712239389,-500.0,0.00013698,3]
[330692875,1719712239399,-500.0,0.00013698,3]
[330692877,1719712239408,-500.0,0.00013698,3]
[330692878,1719712239418,-521.77,0.00013698,3]
[330692880,1719712239427,-500.0,0.00013698,3]
[330692882,1719712239438,-500.0,0.00013698,3]
[330692884,1719712239447,-758.17,0.00013698,3]
[330692887,1719712239458,-500.0,0.00013698,3]
[330692889,1719712239468,-500.0,0.00013698,3]
[330692890,1719712239478,-500.0,0.00013698,3]
[330692892,1719712239488,-836.46,0.00013698,3]
[330692894,1719712239498,-500.0,0.00013698,3]
[330692897,1719712239508,-500.0,0.00013698,3]
[330692899,1719712239518,-500.0,0.00013698,3]
[330692901,1719712239535,-500.0,0.00013698,3]
[330692902,1719712239548,-500.0,0.00013698,3]
[330692905,1719712239558,-500.0,0.00013698,3]
[330692907,1719712239568,-500.0,0.00013698,3]
[330692909,1719712239577,-500.0,0.00013698,3]
[330692910,1719712239587,-500.0,0.00013698,3]
[330692912,1719712239597,-500.0,0.00013698,3]
[330692914,1719712239607,-500.0,0.00013698,3]
[330692917,1719712239616,-500.0,0.00013698,3]
[330692918,1719712239625,-630.29,0.00013698,3]
[330692921,1719712239636,-500.0,0.00013698,3]
[330692922,1719712239646,-500.0,0.00013698,3]
[330692924,1719712239656,-500.0,0.00013698,3]
[330692927,1719712239666,-500.0,0.00013698,3]
[330692928,1719712239676,-500.0,0.00013698,3]
[330692930,1719712239687,-500.0,0.00013698,3]
[330692932,1719712239696,-507.89969007,0.00013698,3]
[330692934,1719712239706,-500.0,0.00013698,3]
[330692936,1719712239716,-500.0,0.00013698,3]
[330692938,1719712239725,-649.61,0.00013698,3]
[330692940,1719712239735,-500.0,0.00013698,3]
[330692942,1719712239745,-506.2271393,0.00013698,3]
[330692944,1719712239760,-500.0,0.00013698,3]
[330692946,1719712239769,-500.0,0.00013698,3]